lending/lending_fUSD_20250719
["ID","MTS","AMOUNT","RATE_DAILY","PERIOD"]
[373165159,1752888672770,-480.0,0.00019397,2]
[373165161,1752888672779,-480.0,0.00019397,2]
[373165163,1752888672789,-480.0,0.00019397,2]
[373165165,1752888672798,-480.0,0.00019397,2]
[373165166,1752888672807,-480.0,0.00019397,2]
[373165168,1752888672827,-495.49,0.00019397,2]
[373165170,1752888672836,-3131.25,0.00019397,2]
[373165172,1752888672846,-1078.16,0.00019397,2]
[373165174,1752888672855,-480.0,0.00019397,2]
[373165176,1752888672865,-480.0,0.00019397,2]
[373165179,1752888672875,-480.0,0.00019397,2]
[373165181,1752888672886,-480.0,0.00019397,2]
[373165183,1752888672897,-480.0,0.00019397,2]
[373165185,1752888672907,-480.0,0.00019397,2]
[373165187,1752888672916,-480.0,0.00019397,2]
[373165188,1752888672926,-706.8,0.00019397,2]
[373165190,1752888672935,-898.9,0.00019397,2]
[373165192,1752888672944,-553.3,0.00019397,2]
[373165194,1752888672953,-480.0,0.00019397,2]
[373165196,1752888672963,-2995.02,0.00019397,2]
[373165198,1752888672972,-871.17,0.00019397,2]
[373165200,1752888672982,-3995.22,0.00019397,2]
[373165202,1752888672991,-480.0,0.00019397,2]
[373165204,1752888673000,-480.0,0.00019397,2]
[373165206,1752888673009,-480.0,0.00019397,2]
[373165208,1752888673019,-574.80408598,0.00019397,2]
[373165210,1752888673028,-480.0,0.00019397,2]
[373165212,1752888673037,-480.0,0.00019397,2]
[373165214,1752888673047,-1340.32,0.00019397,2]
[373165216,1752888673057,-1855.61,0.00019397,2]
[373165218,1752888673067,-1013.99,0.00019397,2]
[373165220,1752888673076,-612.82,0.00019397,2]
[373165222,1752888673086,-5464.38,0.00019397,2]
[373165223,1752888673095,-480.0,0.00019397,2]
[373165225,1752888673104,-1917.13,0.00019397,2]
[373165227,1752888673114,-823.03,0.00019397,2]
[373165229,1752888673123,-528.33,0.00019397,2]
[373165231,1752888673132,-720.52,0.00019397,2]
[373165233,1752888673143,-480.0,0.00019397,2]
[373165235,1752888673156,-1681.6,0.00019397,2]
[373165237,1752888673165,-13559.65,0.00019397,2]
[373165239,1752888673175,-968.31,0.00019397,2]
[373165241,1752888673184,-1252.73,0.00019397,2]
[373165243,1752888673194,-791.37,0.00019397,2]
[373165245,1752888673203,-480.0,0.00019397,2]
[373165247,1752888673213,-875.72,0.00019397,2]
[373165249,1752888673223,-469.56501442,0.00019397,2]
[373165251,1752888673232,-480.0,0.00019397,2]
[373165253,1752888673242,-480.0,0.00019397,2]
[373165255,1752888673251,-509.77,0.00019397,2]
[373165257,1752888673261,-535.75,0.00019397,2]
[373165259,1752888673270,-480.0,0.00019397,2]
[373165261,1752888673279,-480.0,0.00019397,2]
[373165263,1752888673289,-1032.63,0.00019397,2]
[373165265,1752888673298,-802.98,0.00019397,2]
[373165267,1752888673307,-1005.17,0.00019397,2]
[373165268,1752888673317,-480.0,0.00019397,2]
[373165270,1752888673326,-1082.65,0.00019397,2]
[373165272,1752888673335,-969.04,0.00019397,2]
[373165274,1752888673345,-480.0,0.00019397,2]
[373165276,1752888673354,-480.0,0.00019397,2]
[373165278,1752888673363,-480.0,0.00019397,2]
[373165280,1752888673373,-1629.45,0.00019397,2]
[373165282,1752888673382,-1514.35,0.00019397,2]
[373165283,1752888673393,-480.0,0.00019397,2]
[373165285,1752888673403,-337.94688214,0.00019397,2]
[373165288,1752888673412,-805.13,0.00019397,2]
[373165289,1752888673422,-1066.81,0.00019397,2]
[373165292,1752888673433,-4796.86,0.00019397,2]
[373165293,1752888673442,-480.0,0.00019397,2]
[373165295,1752888673452,-480.0,0.00019397,2]
[373165297,1752888673461,-480.0,0.00019397,2]
[373165299,1752888673470,-480.0,0.00019397,2]
[373165301,1752888673479,-1021.81,0.00019397,2]
[373165303,1752888673488,-480.0,0.00019397,2]
[373165305,1752888673500,-3566.89,0.00019397,2]
[373165307,1752888673510,-480.0,0.00019397,2]
[373165310,1752888673523,-1603.75,0.00019397,2]
[373165311,1752888673533,-480.0,0.00019397,2]
[373165312,1752888673542,-480.0,0.00019397,2]
[373165313,1752888673551,-821.44,0.00019397,2]
[373165314,1752888673560,-821.18,0.00019397,2]
[373165315,1752888673569,-480.0,0.00019397,2]
[373165316,1752888673578,-480.0,0.00019397,2]
[373165317,1752888673587,-1634.05,0.00019397,2]
[373165318,1752888673596,-2490.92,0.00019397,2]
[373165319,1752888673606,-604.7,0.00019397,2]
[373165320,1752888673615,-3087.9,0.00019397,2]
[373165321,1752888673625,-970.72,0.00019397,2]
[373165322,1752888673635,-1748.84,0.00019397,2]
[373165323,1752888673647,-480.0,0.00019397,2]
[373165324,1752888673657,-204.74883141,0.00019397,2]
[373165325,1752888673666,-268.07,0.00019397,2]
[373165326,1752888673675,-480.0,0.00019397,2]
[373165327,1752888673684,-480.0,0.00019397,2]
[373165328,1752888673693,-480.0,0.00019397,2]
[373165329,1752888673703,-603.46,0.00019397,2]
[373165330,1752888673711,-532.91,0.00019397,2]
[373165331,1752888673721,-1915.86,0.00019397,2]
[373165332,1752888673730,-1057.88,0.00019397,2]
[373165333,1752888673739,-480.0,0.00019397,2]
[373165334,1752888673748,-480.0,0.00019397,2]
[373165335,1752888673758,-2361.11,0.00019397,2]
[373165336,1752888673767,-2279.02,0.00019397,2]
[373165337,1752888673777,-480.0,0.00019397,2]
[373165338,1752888673786,-480.0,0.00019397,2]
[373165339,1752888673796,-828.8,0.00019397,2]
[373165340,1752888673805,-480.0,0.00019397,2]
[373165341,1752888673815,-564.95,0.00019397,2]
[373165342,1752888673825,-825.18,0.00019397,2]
[373165343,1752888673834,-1303.91,0.00019397,2]
[373165344,1752888673844,-480.0,0.00019397,2]
[373165345,1752888673853,-1096.8,0.00019397,2]
[373165346,1752888673863,-1813.24,0.00019397,2]
[373165347,1752888673873,-566.27,0.00019397,2]
[373165348,1752888673882,-480.0,0.00019397,2]
[373165349,1752888673892,-494.97,0.00019397,2]
[373165350,1752888673901,-480.0,0.00019397,2]
[373165351,1752888673911,-1571.61,0.00019397,2]
[373165352,1752888673921,-5046.27,0.00019397,2]
[373165353,1752888673931,-962.21,0.00019397,2]
[373165354,1752888673941,-480.0,0.00019397,2]
[373165355,1752888673951,-520.74,0.00019397,2]
[373165356,1752888673960,-868.4,0.00019397,2]
[373165357,1752888673970,-473.81959893,0.00019397,2]
[373165358,1752888673979,-480.0,0.00019397,2]
[373165359,1752888673989,-2145.47,0.00019397,2]
[373165360,1752888673999,-1859.22,0.00019397,2]
[373165361,1752888674009,-2324.63,0.00019397,2]
[373165362,1752888674019,-480.0,0.00019397,2]
[373165363,1752888674029,-480.0,0.00019397,2]
[373165364,1752888674038,-680.56,0.00019397,2]
[373165365,1752888674048,-2000.63,0.00019397,2]
[373165366,1752888674058,-977.92,0.00019397,2]
[373165367,1752888674067,-698.05,0.00019397,2]
[373165368,1752888674077,-532.95,0.00019397,2]
[373165369,1752888674087,-1464.48,0.00019397,2]
[373165370,1752888674096,-566.02,0.00019397,2]
[373165371,1752888674106,-1622.47,0.00019397,2]
[373165372,1752888674116,-480.0,0.00019397,2]
[373165373,1752888674126,-526.96,0.00019397,2]
[373165374,1752888674136,-1223.86,0.00019397,2]
[373165375,1752888674149,-480.0,0.00019397,2]
[373165376,1752888674159,-1945.01,0.00019397,2]
[373165377,1752888674169,-4391.98,0.00019397,2]
[373165378,1752888674178,-962.59,0.00019397,2]
[373165379,1752888674190,-344.35813796,0.00019397,2]
[373165380,1752888674200,-1016.89,0.00019397,2]
[373165381,1752888674210,-1497.68,0.00019397,2]
[373165382,1752888674219,-3188.33,0.00019397,2]
[373165383,1752888674231,-511.01,0.00019397,2]
[373165384,1752888674241,-817.83,0.00019397,2]
[373165385,1752888674251,-460.0,0.00019397,2]
[373165386,1752888674263,-8208.97,0.00019397,2]
[373165387,1752888674272,-878.55,0.00019397,2]
[373165388,1752888674284,-1589.38,0.00019397,2]
[373165389,1752888674294,-480.0,0.00019397,2]
[373165390,1752888674304,-3984.11,0.00019397,2]
[373165391,1752888674315,-2919.23,0.00019397,2]
[373165392,1752888674325,-800.44,0.00019397,2]
[373165393,1752888674335,-2236.36,0.00019397,2]
[373165395,1752888674346,-480.0,0.00019397,2]
[373165397,1752888674356,-480.0,0.00019397,2]
[373165400,1752888674366,-1183.06,0.00019397,2]
[373165402,1752888674376,-480.0,0.00019397,2]
[373165404,1752888674387,-480.0,0.00019397,2]
[373165406,1752888674398,-725.36,0.00019397,2]
[373165408,1752888674408,-480.0,0.00019397,2]
[373165410,1752888674418,-2173.08,0.00019397,2]
[373165412,1752888674429,-2117.64,0.00019397,2]
[373165414,1752888674439,-480.0,0.00019397,2]
[373165416,1752888674449,-2731.47,0.00019397,2]
[373165418,1752888674459,-1978.38,0.00019397,2]
[373165420,1752888674470,-531.72,0.00019397,2]
[373165422,1752888674480,-480.0,0.00019397,2]
[373165424,1752888674490,-555.35,0.00019397,2]
[373165426,1752888674500,-480.0,0.00019397,2]
[373165428,1752888674509,-1343.88,0.00019397,2]
[373165430,1752888674519,-480.0,0.00019397,2]
[373165431,1752888674528,-480.0,0.00019397,2]
[373165432,1752888674539,-2481.37,0.00019397,2]
[373165433,1752888674549,-480.0,0.00019397,2]
[373165434,1752888674559,-480.0,0.00019397,2]
[373165435,1752888674569,-480.0,0.00019397,2]
[373165436,1752888674579,-728.91,0.00019397,2]
[373165437,1752888674588,-543.74,0.00019397,2]
[373165438,1752888674598,-560.64,0.00019397,2]
[373165439,1752888674608,-480.0,0.00019397,2]
[373165440,1752888674618,-480.0,0.00019397,2]
[373165441,1752888674628,-480.0,0.00019397,2]
[373165442,1752888674638,-508.37,0.00019397,2]
[373165443,1752888674650,-585.12,0.00019397,2]
[373165444,1752888674660,-1149.78,0.00019397,2]
[373165445,1752888674671,-3388.13,0.00019397,2]
[373165446,1752888674681,-2906.59,0.00019397,2]
[373165447,1752888674691,-891.26,0.00019397,2]
[373165448,1752888674701,-1185.44,0.00019397,2]
[373165449,1752888674711,-480.0,0.00019397,2]
[373165450,1752888674721,-2035.15,0.00019397,2]
[373165451,1752888674732,-748.68,0.00019397,2]
[373165452,1752888674742,-1441.68,0.00019397,2]
[373165453,1752888674752,-998.17,0.00019397,2]
[373165454,1752888674762,-1381.67,0.00019397,2]
[373165455,1752888674772,-994.6,0.00019397,2]
[373165456,1752888674783,-480.0,0.00019397,2]
[373165457,1752888674794,-523.26,0.00019397,2]
[373165458,1752888674804,-480.0,0.00019397,2]
[373165459,1752888674814,-615.01,0.00019397,2]
[373165460,1752888674824,-480.0,0.00019397,2]
[373165461,1752888674834,-480.0,0.00019397,2]
[373165462,1752888674844,-2381.44,0.00019397,2]
[373165463,1752888674854,-480.0,0.00019397,2]
[373165464,1752888674863,-2219.69,0.00019397,2]
[373165465,1752888674874,-6547.29,0.00019397,2]
[373165466,1752888674883,-480.0,0.00019397,2]
[373165467,1752888674895,-480.0,0.00019397,2]
[373165468,1752888674905,-5876.53,0.00019397,2]
[373165469,1752888674915,-781.22,0.00019397,2]
[373165470,1752888674925,-574.05,0.00019397,2]
[373165471,1752888674934,-1256.0,0.00019397,2]
[373165472,1752888674946,-480.0,0.00019397,2]
[373165473,1752888674956,-480.0,0.00019397,2]
[373165474,1752888674966,-386.69215811,0.00019397,2]
[373165475,1752888674976,-34456.48,0.00019397,2]
[373165476,1752888674986,-1885.62,0.00019397,2]
[373165477,1752888674997,-480.0,0.00019397,2]
[373165478,1752888675007,-1843.88,0.00019397,2]
[373165479,1752888675017,-756.65,0.00019397,2]
[373165480,1752888675027,-1063.27,0.00019397,2]
[373165481,1752888675037,-779.84,0.00019397,2]
[373165482,1752888675047,-902.36,0.00019397,2]
[373165483,1752888675057,-480.0,0.00019397,2]
[373165484,1752888675067,-879.53,0.00019397,2]
[373165485,1752888675077,-531.39,0.00019397,2]
[373165486,1752888675088,-3926.79,0.00019397,2]
[373165487,1752888675098,-1334.35,0.00019397,2]
[373165488,1752888675108,-1098.83,0.00019397,2]
[373165489,1752888675118,-1112.34,0.00019397,2]
[373165490,1752888675128,-480.0,0.00019397,2]
[373165491,1752888675138,-4173.98,0.00019397,2]
[373165492,1752888675153,-480.0,0.00019397,2]
[373165493,1752888675163,-1019.75,0.00019397,2]
[373165494,1752888675173,-531.52,0.00019397,2]
[373165495,1752888675183,-878.37,0.00019397,2]
[373165496,1752888675194,-536.67,0.00019397,2]
[373165497,1752888675204,-220.94,0.00019397,2]
[373165498,1752888675214,-4040.09,0.00019397,2]
[373165499,1752888675225,-480.0,0.00019397,2]
[373165500,1752888675235,-1009.72,0.00019397,2]
[373165501,1752888675245,-3332.41,0.00019397,2]
[373165502,1752888675256,-1912.01,0.00019397,2]
[373165503,1752888675266,-1204.49,0.00019397,2]
[373165504,1752888675277,-1164.19,0.00019397,2]
[373165505,1752888675287,-480.0,0.00019397,2]
[373165506,1752888675297,-480.0,0.00019397,2]
[373165507,1752888675308,-480.0,0.00019397,2]
[373165509,1752888675318,-503.30934152,0.00019397,2]
[373165510,1752888675329,-2333.35,0.00019397,2]
[373165511,1752888675339,-480.0,0.00019397,2]
[373165512,1752888675350,-480.0,0.00019397,2]
[373165513,1752888675360,-480.0,0.00019397,2]
[373165514,1752888675370,-480.0,0.00019397,2]
[373165515,1752888675381,-480.0,0.00019397,2]
[373165516,1752888675392,-642.55,0.00019397,2]
[373165517,1752888675402,-480.0,0.00019397,2]
[373165518,1752888675411,-645.39,0.00019397,2]
[373165519,1752888675422,-480.0,0.00019397,2]
[373165520,1752888675431,-1344.15,0.00019397,2]
[373165521,1752888675442,-1024.03,0.00019397,2]
[373165522,1752888675451,-480.0,0.00019397,2]
[373165523,1752888675461,-480.0,0.00019397,2]
[373165524,1752888675472,-1675.21,0.00019397,2]
[373165525,1752888675482,-656.42,0.00019397,2]
[373165526,1752888675493,-2380.94,0.00019397,2]
[373165527,1752888675503,-480.0,0.00019397,2]
[373165528,1752888675513,-565.56,0.00019397,2]
[373165529,1752888675523,-1145.56,0.00019397,2]
[373165530,1752888675533,-341.97522889,0.00019397,2]
[373165531,1752888675543,-2595.14,0.00019397,2]
[373165532,1752888675553,-2293.05,0.00019397,2]
[373165533,1752888675563,-480.0,0.00019397,2]
[373165534,1752888675574,-6879.99,0.00019397,2]
[373165535,1752888675584,-480.0,0.00019397,2]
[373165536,1752888675594,-412.47607726,0.00019397,2]
[373165537,1752888675604,-300.0,0.00019397,2]
[373165538,1752888675614,-480.0,0.00019397,2]
[373165539,1752888675624,-480.0,0.00019397,2]
[373165540,1752888675634,-904.05,0.00019397,2]
[373165541,1752888675645,-168.83846827,0.00019397,2]
[373165542,1752888675655,-1167.24,0.00019397,2]
[373165543,1752888675666,-480.0,0.00019397,2]
[373165544,1752888675676,-2324.72,0.00019397,2]
[373165545,1752888675686,-657.5,0.00019397,2]
[373165546,1752888675696,-480.0,0.00019397,2]
[373165547,1752888675706,-1846.36,0.00019397,2]
[373165548,1752888675716,-1860.83,0.00019397,2]
[373165549,1752888675726,-2058.15,0.00019397,2]
[373165550,1752888675735,-480.0,0.00019397,2]
[373165551,1752888675745,-279.21520215,0.00019397,2]
[373165552,1752888675756,-480.0,0.00019397,2]
[373165553,1752888675766,-480.0,0.00019397,2]
[373165554,1752888675776,-481.89647334,0.00019397,2]
[373165555,1752888675786,-480.0,0.00019397,2]
[373165556,1752888675797,-784.99,0.00019397,2]
[373165557,1752888675807,-480.0,0.00019397,2]
[373165558,1752888675817,-2668.26,0.00019397,2]
[373165559,1752888675828,-1787.76,0.00019397,2]
[373165560,1752888675838,-694.6,0.00019397,2]
[373165561,1752888675848,-480.0,0.00019397,2]
[373165562,1752888675858,-1118.66,0.00019397,2]
[373165563,1752888675869,-480.0,0.00019397,2]
[373165564,1752888675879,-3471.23,0.00019397,2]
[373165565,1752888675889,-480.0,0.00019397,2]
[373165566,1752888675902,-480.0,0.00019397,2]
[373165567,1752888675911,-480.0,0.00019397,2]
[373165568,1752888675921,-745.51,0.00019397,2]
[373165569,1752888675931,-1379.76,0.00019397,2]
[373165570,1752888675941,-2501.63,0.00019397,2]
[373165571,1752888675951,-6088.28,0.00019397,2]
[373165572,1752888675961,-480.0,0.00019397,2]
[373165573,1752888675971,-480.0,0.00019397,2]
[373165574,1752888675982,-3402.23,0.00019397,2]
[373165575,1752888675991,-480.0,0.00019397,2]
[373165576,1752888676001,-1615.66,0.00019397,2]
[373165577,1752888676011,-303.836296,0.000194,2]
[373165578,1752888676021,-10708.05642852,0.000194,2]
[373165579,1752888676030,-5303.56351031,0.00019403,2]
[373165580,1752888676042,-22790.04181267,0.00019404,2]
[373165581,1752888676052,-167.77427081,0.00019406,2]
[373165582,1752888676062,-17809.54116159,0.00019408,2]
[373165583,1752888676073,-4597.25088046,0.0001941,2]
[373165584,1752888676084,-164738.2557727,0.00019413,2]
[373165586,1752888676094,-200.0,0.00019414,2]
[373165587,1752888676130,-181.909,0.00019416,2]
[373165588,1752888676140,-150.0,0.00019416,2]
[373165589,1752888676154,-150.0,0.00019416,2]
[373165590,1752888676164,-150.0,0.00019416,2]
[373165591,1752888676174,-798.59543624,0.00019417,2]
[373165592,1752888676183,-2274.48569608,0.00019418,2]
[373165593,1752888676193,-2274.48569608,0.0001942,2]
[373165594,1752888676203,-1680.0,0.00019422,2]
[373165595,1752888676213,-22790.04181267,0.00019423,2]
[373165596,1752888676225,-7919.9777048,0.00019428,2]
[373165597,1752888676235,-2118.23,0.0001943,2]
[373165598,1752888676246,-164738.2557727,0.00019431,2]
[373165599,1752888676256,-168.23,0.00019434,2]
[373165600,1752888676267,-164738.2557727,0.00019435,2]
[373165601,1752888676277,-502.12858549,0.00019441,2]
[373165602,1752888676287,-150.0,0.00019441,2]
[373165603,1752888676298,-150.0,0.00019441,2]
[373165604,1752888676307,-500.0,0.00019441,2]
[373165605,1752888676317,-150.0,0.00019441,2]
[373165606,1752888676329,-500.0,0.00019441,2]
[373165607,1752888676343,-500.0,0.00019441,2]
[373165608,1752888676353,-150.0,0.00019441,2]
[373165609,1752888676364,-150.0,0.00019441,2]
[373165610,1752888676380,-500.0,0.00019441,2]
[373165611,1752888676390,-150.0,0.00019441,2]
[373165612,1752888676401,-500.0,0.00019441,2]
[373165613,1752888676411,-500.0,0.00019441,2]
[373165614,1752888676421,-500.0,0.00019441,2]
[373165615,1752888676431,-822.0,0.00019441,2]
[373165616,1752888676443,-500.0,0.00019441,2]
[373165617,1752888676453,-3307.0,0.00019441,2]
[373165618,1752888676463,-150.0,0.00019441,2]
[373165619,1752888676474,-500.0,0.00019441,2]
[373165620,1752888676486,-963.0,0.00019441,2]
[373165621,1752888676498,-150.0,0.00019441,2]
[373165622,1752888676510,-500.0,0.00019441,2]
[373165623,1752888676522,-150.0,0.00019441,2]
[373165624,1752888676533,-150.0,0.00019441,2]
[373165625,1752888676547,-257.47730234,0.00019441,2]
[373165626,1752888676558,-500.0,0.00019441,2]
[373165627,1752888676569,-150.0,0.00019441,2]
[373165628,1752888676580,-150.0,0.00019441,2]
[373165629,1752888676590,-500.0,0.00019441,2]
[373165630,1752888676600,-500.0,0.00019441,2]
[373165631,1752888676611,-500.0,0.00019441,2]
[373165632,1752888676927,-4233.18587294,0.00019443,2]
[373165633,1752888676948,-500.0,0.00019443,2]
[373165634,1752888676958,-864.56127318,0.00019443,2]
[373165635,1752888676968,-22790.04181267,0.00019444,2]
[373165636,1752888676977,-17809.54116159,0.00019453,2]
[373165637,1752888676987,-29424.58858666,0.00019458,2]
[373165638,1752888676996,-29424.58858666,0.00019461,2]
[373165639,1752888677006,-7919.9777048,0.00019471,2]
[373165640,1752888677015,-798.59543624,0.00019474,2]
[373165641,1752888677025,-29424.58858666,0.00019477,2]
[373165642,1752888677035,-4597.25088046,0.00019482,2]
[373165643,1752888677044,-17809.54116159,0.00019483,2]
[373165644,1752888677054,-798.59543624,0.00019484,2]
[373165645,1752888677063,-5303.56351031,0.00019491,2]
[373165646,1752888677076,-2274.48569608,0.00019492,2]
[373165647,1752888677086,-612.73191784,0.00019496,2]
[373165648,1752888677101,-260.87830655,0.00019504,2]
[373165649,1752888677110,-500.0,0.00019505,2]
[373165650,1752888677120,-497.87946342,0.00019505,2]
[373165651,1752888677129,-355.76907792,0.00019506,2]
[373165652,1752888677139,-480.0,0.00019506,2]
[373165653,1752888677154,-480.0,0.00019506,2]
[373165654,1752888677163,-480.0,0.00019506,2]
[373165655,1752888677172,-480.0,0.00019506,2]
[373165656,1752888677182,-480.0,0.00019506,2]
[373165657,1752888677192,-480.0,0.00019506,2]
[373165658,1752888677201,-480.0,0.00019506,2]
[373165659,1752888677211,-178.1042041,0.00019506,2]
[373165660,1752888677220,-480.0,0.00019506,2]
[373165661,1752888677231,-480.0,0.00019506,2]
[373165662,1752888677242,-480.0,0.00019506,2]
[373165663,1752888677252,-480.0,0.00019506,2]
[373165664,1752888677261,-480.0,0.00019506,2]
[373165665,1752888677271,-480.0,0.00019506,2]
[373165666,1752888677280,-209.75,0.00019506,2]
[373165667,1752888677290,-440.0,0.00019506,2]
[373165668,1752888677299,-480.0,0.00019506,2]
[373165669,1752888677309,-388.70026488,0.00019506,2]
[373165670,1752888677319,-480.0,0.00019506,2]
[373165671,1752888677329,-480.0,0.00019506,2]
[373165672,1752888677339,-480.0,0.00019506,2]
[373165673,1752888677348,-480.0,0.00019506,2]
[373165674,1752888677358,-526.77,0.00019506,2]
[373165675,1752888677367,-480.0,0.00019506,2]
[373165676,1752888677376,-480.0,0.00019506,2]
[373165677,1752888677386,-480.0,0.00019506,2]
[373165678,1752888677396,-480.0,0.00019506,2]
[373165679,1752888677406,-522.6,0.00019506,2]
[373165680,1752888677415,-480.0,0.00019506,2]
[373165681,1752888677425,-480.0,0.00019506,2]
[373165682,1752888677434,-480.0,0.00019506,2]
[373165683,1752888677443,-480.0,0.00019506,2]
[373165684,1752888677452,-480.0,0.00019506,2]
[373165685,1752888677462,-480.0,0.00019506,2]
[373165686,1752888677472,-480.0,0.00019506,2]
[373165687,1752888677481,-480.0,0.00019506,2]
[373165688,1752888677490,-495.11645812,0.00019506,2]
[373165689,1752888677499,-480.0,0.00019506,2]
[373165690,1752888677509,-531.64,0.00019506,2]
[373165691,1752888677518,-480.0,0.00019506,2]
[373165692,1752888677527,-480.0,0.00019506,2]
[373165693,1752888677536,-480.0,0.00019506,2]
[373165694,1752888677546,-400.0,0.00019506,2]
[373165695,1752888677555,-480.0,0.00019506,2]
[373165696,1752888677565,-345.68568153,0.00019506,2]
[373165697,1752888677574,-480.0,0.00019506,2]
[373165698,1752888677583,-480.0,0.00019506,2]
[373165699,1752888677593,-480.0,0.00019506,2]
[373165700,1752888677602,-480.0,0.00019506,2]
[373165701,1752888677612,-480.0,0.00019506,2]
[373165702,1752888677622,-480.0,0.00019506,2]
[373165703,1752888677639,-540.0,0.00019506,2]
[373165704,1752888677658,-480.0,0.00019506,2]
[373165705,1752888677668,-480.0,0.00019506,2]
[373165706,1752888677677,-480.0,0.00019506,2]
[373165707,1752888677686,-480.0,0.00019506,2]
[373165708,1752888677695,-480.0,0.00019506,2]
[373165709,1752888677705,-480.0,0.00019506,2]
[373165710,1752888677715,-480.0,0.00019506,2]
[373165711,1752888677724,-506.35,0.00019506,2]
[373165712,1752888677733,-300.4377264,0.00019506,2]
[373165713,1752888677743,-480.0,0.00019506,2]
[373165714,1752888677757,-480.0,0.00019506,2]
[373165715,1752888677767,-480.0,0.00019506,2]
[373165716,1752888677778,-792.99,0.00019506,2]
[373165717,1752888677788,-215.7,0.00019506,2]
[373165718,1752888677798,-480.0,0.00019506,2]
[373165719,1752888677808,-480.0,0.00019506,2]
[373165720,1752888677818,-480.0,0.00019506,2]
[373165721,1752888677828,-372.2846707,0.00019506,2]
[373165722,1752888677838,-220.47290357,0.00019506,2]
[373165723,1752888677849,-480.0,0.00019506,2]
[373165724,1752888677859,-480.0,0.00019506,2]
[373165725,1752888677869,-480.0,0.00019506,2]
[373165726,1752888677878,-659.27,0.00019506,2]
[373165727,1752888677887,-480.0,0.00019506,2]
[373165728,1752888677898,-620.8363465,0.00019506,2]
[373165729,1752888677908,-480.0,0.00019506,2]
[373165730,1752888677918,-310.31544774,0.00019506,2]
[373165731,1752888677927,-480.0,0.00019506,2]
[373165732,1752888677937,-480.0,0.00019506,2]
[373165733,1752888677947,-480.0,0.00019506,2]
[373165734,1752888677958,-480.0,0.00019506,2]
[373165735,1752888677967,-480.0,0.00019506,2]
[373165736,1752888677977,-480.0,0.00019506,2]
[373165737,1752888677986,-879.89,0.00019506,2]
[373165738,1752888677995,-480.0,0.00019506,2]
[373165739,1752888678006,-480.0,0.00019506,2]
[373165740,1752888678015,-480.0,0.00019506,2]
[373165741,1752888678025,-480.0,0.00019506,2]
[373165742,1752888678034,-480.0,0.00019506,2]
[373165743,1752888678043,-480.0,0.00019506,2]
[373165744,1752888678053,-378.23,0.00019506,2]
[373165745,1752888678062,-601.15,0.00019506,2]
[373165746,1752888678072,-480.0,0.00019506,2]
[373165747,1752888678081,-480.0,0.00019506,2]
[373165748,1752888678091,-480.0,0.00019506,2]
[373165749,1752888678100,-480.0,0.00019506,2]
[373165750,1752888678110,-849.49,0.00019506,2]
[373165751,1752888678119,-237.39986118,0.00019506,2]
[373165752,1752888678129,-480.0,0.00019506,2]
[373165753,1752888678139,-440.0,0.00019506,2]